2CCN - Level 2 Cost Centre Name,,9CCN - Level 9 Cost Centre Name,9CCC - Level 9 Cost Centre Code,9AN - Level 9 Account Name,9AC - Level 9 Account Code,Date posted,Date of transaction,Merchant Name,Merchant City,Merchant State,Merchant Zip Code,Originating Account Name,Originating Account Number,MCC/SIC Code,MCC Description,Original Amount,Currency,Conversion Rate,Billed Amount,Debit Credit,Reference Number,Statement Cycle,Account Name
Gloucester City Council,23UE,Museum of Gloucester,MU002,Events,3070,03/12/2020,02/12/2020,HOBBYCRAFT,GLOUCESTER,,GL1 5SF,REDACTED,556*********9934,5970,"ARTIST SUPPLY STORES, CRAFT SHOPS",24,Pound Sterling (826),1.000000000,24,Debit,55541960338469000053772,02/01/2021,GLOUCESTER CITY COUNCIL
Gloucester City Council,23UE,Museum of Gloucester,MU002,Events,3070,03/12/2020,02/12/2020,WILKO RETAIL LIMITED,GLOUCESTER,GBR,GL1 1SL,REDACTED,556*********9934,5399,MISCELLANEOUS GENERAL MERCHANDISE STORES,34,Pound Sterling (826),1.000000000,34,Debit,05272460338910014370349,02/01/2021,GLOUCESTER CITY COUNCIL
Gloucester City Council,23UE,Museum of Gloucester,MU002,General Supplies/Materials,3025,03/12/2020,02/12/2020,THE WORKS,GLOUCESTER,,GL1 2NG,REDACTED,556*********9934,5310,DISCOUNT STORES,17.5,Pound Sterling (826),1.000000000,17.5,Debit,85481470338273560182545,02/01/2021,GLOUCESTER CITY COUNCIL
Gloucester City Council,23UE,Museum of Gloucester,MU002,General Supplies/Materials,3025,04/12/2020,03/12/2020,AMZNMktplace,amazon.co.uk,GBR,EC2A 2FA,REDACTED,556*********9934,5999,MISCELLANEOUS AND RETAIL STORES,22.89,Pound Sterling (826),1.000000000,22.89,Debit,52692010338200506963711,02/01/2021,GLOUCESTER CITY COUNCIL
Gloucester City Council,23UE,Museum of Gloucester,MU002,General Supplies/Materials,3025,04/12/2020,03/12/2020,AMZNMktplace,amazon.co.uk,GBR,EC2A 2FA,REDACTED,556*********9934,5999,MISCELLANEOUS AND RETAIL STORES,47.9,Pound Sterling (826),1.000000000,47.9,Debit,52692010338200606781641,02/01/2021,GLOUCESTER CITY COUNCIL
Gloucester City Council,23UE,Museum of Gloucester,MU002,General Supplies/Materials,3025,04/12/2020,03/12/2020,AMZ*MIQUOO,AMAZON.CO.UK,GBR,EC2A 2FA,REDACTED,556*********9934,5999,MISCELLANEOUS AND RETAIL STORES,-18.47,Pound Sterling (826),1.000000000,-18.47,Credit,52692010338200656609197,02/01/2021,GLOUCESTER CITY COUNCIL
Gloucester City Council,23UE,Museum of Gloucester,MU002,General Supplies/Materials,3025,07/12/2020,06/12/2020,AMZNMKTPLACE AMAZON.CO,AMAZON.CO.UK,GBR,EC2A 2FA,REDACTED,556*********9934,5999,MISCELLANEOUS AND RETAIL STORES,25.99,Pound Sterling (826),1.000000000,25.99,Debit,85389240341048693414311,02/01/2021,GLOUCESTER CITY COUNCIL
Gloucester City Council,23UE,Museum of Gloucester,MU002,Events,3070,08/12/2020,07/12/2020,POUNDSTRETCHER STOCK,HUDDERSFIELD,,NE16 3AA,REDACTED,556*********9934,5331,VARIETY STORES,2.58,Pound Sterling (826),1.000000000,2.58,Debit,55541960343469003542303,02/01/2021,GLOUCESTER CITY COUNCIL
Gloucester City Council,23UE,Museum of Gloucester,MU002,Events,3070,08/12/2020,07/12/2020,ALL YEAR ROUND 365 LTD,UNKNOWN,,RM15 4XB,REDACTED,556*********9934,5812,"EATING PLACES, RESTAURANTS",11,Pound Sterling (826),1.000000000,11,Debit,55541960343942000495535,02/01/2021,GLOUCESTER CITY COUNCIL
Gloucester City Council,23UE,Museum of Gloucester,MU002,Events,3070,08/12/2020,07/12/2020,HOBBYCRAFT,GLOUCESTER,,GL1 5SF,REDACTED,556*********9934,5970,"ARTIST SUPPLY STORES, CRAFT SHOPS",29,Pound Sterling (826),1.000000000,29,Debit,55541960343469000061349,02/01/2021,GLOUCESTER CITY COUNCIL
Gloucester City Council,23UE,Museum of Gloucester Catering,MU004,Catering Provisions,3103,08/12/2020,07/12/2020,BOOKER LIMITED GLOUCES,GLOUCESTER,GBR,GL4 3RT,REDACTED,556*********9934,5811,CATERERS,78.84,Pound Sterling (826),1.000000000,78.84,Debit,55184220342523434173930,02/01/2021,GLOUCESTER CITY COUNCIL
Gloucester City Council,23UE,Museum of Gloucester,MU002,Events,3070,08/12/2020,07/12/2020,POUNDLAND LTD 1167,GLOUCESTER,,GL11XH,REDACTED,556*********9934,5310,DISCOUNT STORES,10.5,Pound Sterling (826),1.000000000,10.5,Debit,85481470343274703298498,02/01/2021,GLOUCESTER CITY COUNCIL
Gloucester City Council,23UE,Museum of Gloucester,MU002,Events,3070,08/12/2020,07/12/2020,THE WORKS,GLOUCESTER,,GL1 2NG,REDACTED,556*********9934,5310,DISCOUNT STORES,2,Pound Sterling (826),1.000000000,2,Debit,85481470343274772998333,02/01/2021,GLOUCESTER CITY COUNCIL
Gloucester City Council,23UE,Museum of Gloucester,MU002,General Supplies/Materials,3025,09/12/2020,08/12/2020,POST OFFICE COUNTER,GLOUCESTER,,GL1 1AD,REDACTED,556*********9934,9402,POSTAGE STAMPS,6.74,Pound Sterling (826),1.000000000,6.74,Debit,55504430343194235290484,02/01/2021,GLOUCESTER CITY COUNCIL
Gloucester City Council,23UE,Museum of Gloucester,MU002,General Supplies/Materials,3025,09/12/2020,08/12/2020,Amazon.co.uk*MS0CR8F34,AMAZON.CO.UK,LUX,L2338,REDACTED,556*********9934,5969,ALL OTHER DIRECT MARKETERS,14.33,Pound Sterling (826),1.000000000,14.33,Debit,52692010343200044162969,02/01/2021,GLOUCESTER CITY COUNCIL
Gloucester City Council,23UE,Museum of Gloucester,MU002,Events,3070,11/12/2020,10/12/2020,TESCO STORE 2581,GLOUCESTER,GBR,GL1 2SR,REDACTED,556*********9934,5411,"GROCERY STORES, SUPERMARKETS",12.06,Pound Sterling (826),1.000000000,12.06,Debit,05130860346910008549208,02/01/2021,GLOUCESTER CITY COUNCIL
Gloucester City Council,23UE,Museum of Gloucester,MU002,Events,3070,11/12/2020,10/12/2020,BOOKER LIMITED GLOUCES,GLOUCESTER,GBR,GL4 3RT,REDACTED,556*********9934,5811,CATERERS,50.97,Pound Sterling (826),1.000000000,50.97,Debit,55184220345523466185924,02/01/2021,GLOUCESTER CITY COUNCIL
Gloucester City Council,23UE,Museum of Gloucester,MU002,Cleaning Services & Materials,1500,17/12/2020,16/12/2020,SAVERS HEALTH & BEAUTY,GLOUCESTER,GBR,GL1 2AN,REDACTED,556*********9934,5912,"DRUG STORES, PHARMACIES",5.96,Pound Sterling (826),1.000000000,5.96,Debit,05130860352910027784894,02/01/2021,GLOUCESTER CITY COUNCIL
Gloucester City Council,23UE,Museum of Gloucester,MU002,General Supplies/Materials,3025,18/12/2020,17/12/2020,HISTORYONICS,MONMOUTH,LND,NP25 5QG,REDACTED,556*********9934,5399,MISCELLANEOUS GENERAL MERCHANDISE STORES,66,Pound Sterling (826),1.000000000,66,Debit,85383900352000002012030,02/01/2021,GLOUCESTER CITY COUNCIL
Gloucester City Council,23UE,Museum of Gloucester,MU002,Events,3070,21/12/2020,18/12/2020,Jessops,Gloucester,GBR,GL1 1RW,REDACTED,556*********9934,5946,CAMERA AND PHOTOGRAPHIC SUPPLY STORES,13.11,Pound Sterling (826),1.000000000,13.11,Debit,15265670353002948028730,02/01/2021,GLOUCESTER CITY COUNCIL
Gloucester City Council,23UE,Museum of Gloucester,MU002,Events,3070,21/12/2020,19/12/2020,iZ *Revive Coffee,GLOUCESTER,GBR,GL11HX,REDACTED,556*********9934,8398,CHARITABLE AND SOCIAL SERVICE ORGANIZATIONS,18.75,Pound Sterling (826),1.000000000,18.75,Debit,25481040355042586536173,02/01/2021,GLOUCESTER CITY COUNCIL
Gloucester City Council,23UE,Museum of Gloucester,MU002,General Supplies/Materials,3025,22/12/2020,21/12/2020,AMZNMktplace,amazon.co.uk,GBR,EC2A 2FA,REDACTED,556*********9934,5999,MISCELLANEOUS AND RETAIL STORES,30.98,Pound Sterling (826),1.000000000,30.98,Debit,52692010356200919619410,02/01/2021,GLOUCESTER CITY COUNCIL
Gloucester City Council,23UE,Museum of Gloucester,MU002,General Supplies/Materials,3025,22/12/2020,19/12/2020,WWW.PRESERVATIONEQUIPM,01379647400,,IP22 4HQ,REDACTED,556*********9934,4225,"PUBLIC WAREHOUSING-FARM PROD,REFRIGERATE",142.81,Pound Sterling (826),1.000000000,142.81,Debit,55504430356174154652934,02/01/2021,GLOUCESTER CITY COUNCIL
Gloucester City Council,23UE,Museum of Gloucester,MU002,General Supplies/Materials,3025,23/12/2020,22/12/2020,GOCABLETIES LTD,CHESTERFIELD,LND,S40 3LA,REDACTED,556*********9934,5712,"FURNITURE, HOME FURNISHINGS AND EQUIPMENT STORES",31.67,Pound Sterling (826),1.000000000,31.67,Debit,85383900357000002045597,02/01/2021,GLOUCESTER CITY COUNCIL
Gloucester City Council,23UE,Museum of Gloucester,MU002,General Supplies/Materials,3025,23/12/2020,22/12/2020,Amazon.co.uk*MJ9691C84,AMAZON.CO.UK,LUX,L2338,REDACTED,556*********9934,5969,ALL OTHER DIRECT MARKETERS,26.53,Pound Sterling (826),1.000000000,26.53,Debit,52692010357200256930205,02/01/2021,GLOUCESTER CITY COUNCIL
Gloucester City Council,23UE,Museum of Gloucester Catering,MU004,Catering Provisions,3103,23/12/2020,22/12/2020,BOOKER LIMITED GLOUCES,GLOUCESTER,GBR,GL4 3RT,REDACTED,556*********9934,5811,CATERERS,50.14,Pound Sterling (826),1.000000000,50.14,Debit,55184220357523586442069,02/01/2021,GLOUCESTER CITY COUNCIL
Gloucester City Council,23UE,Museum of Gloucester,MU002,Exhibition Costs,3021,30/12/2020,29/12/2020,B & Q 1179,GLOUCESTER,,GL12SG,REDACTED,556*********9934,5200,HOME SUPPLY WAREHOUSE STORES,166.84,Pound Sterling (826),1.000000000,166.84,Debit,85481470365279450700656,02/01/2021,GLOUCESTER CITY COUNCIL
Gloucester City Council,23UE,Healthy Homes,PS001,Compensation Payments,3711,07/12/2020,06/12/2020,FACEBK VCY6YX27T2,fb.me/ads,IRL,2,REDACTED,556*********1418,7311,ADVERTISING SERVICES,17,Pound Sterling (826),1.000000000,17,Debit,15265670341000155877745,02/01/2021,GLOUCESTER CITY COUNCIL
Gloucester City Council,23UE,Public Health,PH001,Advertising & Publicity,3404,08/12/2020,05/12/2020,NOW TV,.,,EH54 7BW,REDACTED,556*********1418,4899,"CABLE,SATELLITE & OTHER TV/RADIO SERVICE",18.4,Pound Sterling (826),1.000000000,18.4,Debit,55504430342039385186365,02/01/2021,GLOUCESTER CITY COUNCIL
Gloucester City Council,23UE,Public Health,PH001,Advertising & Publicity,3404,08/12/2020,08/12/2020,FACEBK ASFA9XW6T2,fb.me/ads,IRL,2,REDACTED,556*********1418,7311,ADVERTISING SERVICES,17,Pound Sterling (826),1.000000000,17,Debit,15265670343000000327456,02/01/2021,GLOUCESTER CITY COUNCIL
Gloucester City Council,23UE,Public Health,PH001,Advertising & Publicity,3404,11/12/2020,09/12/2020,FACEBK SVXNMXJ6T2,fb.me/ads,IRL,2,REDACTED,556*********1418,7311,ADVERTISING SERVICES,17,Pound Sterling (826),1.000000000,17,Debit,15265670344000369577658,02/01/2021,GLOUCESTER CITY COUNCIL
Gloucester City Council,23UE,Public Health,PH001,Advertising & Publicity,3404,14/12/2020,12/12/2020,FACEBK 9KXK8Y66T2,fb.me/ads,IRL,2,REDACTED,556*********1418,7311,ADVERTISING SERVICES,25,Pound Sterling (826),1.000000000,25,Debit,15265670347000176246825,02/01/2021,GLOUCESTER CITY COUNCIL
Gloucester City Council,23UE,Public Health,PH001,Advertising & Publicity,3404,15/12/2020,14/12/2020,FACEBK YPGE6Y27T2,fb.me/ads,IRL,2,REDACTED,556*********1418,7311,ADVERTISING SERVICES,25,Pound Sterling (826),1.000000000,25,Debit,15265670349312143963822,02/01/2021,GLOUCESTER CITY COUNCIL
Gloucester City Council,23UE,Public Health,PH001,Advertising & Publicity,3404,21/12/2020,19/12/2020,FACEBK VFJ8DY66T2,fb.me/ads,IRL,2,REDACTED,556*********1418,7311,ADVERTISING SERVICES,40,Pound Sterling (826),1.000000000,40,Debit,15265670354000429526825,02/01/2021,GLOUCESTER CITY COUNCIL
Gloucester City Council,23UE,Countryside Unit,EP003,Vehicle Repairs and MaintenancE,2103,03/12/2020,02/12/2020,THE STARTER BAY,GLOUCESTER,GBR,GL3 1DL,REDACTED,556*********6734,7538,AUTOMOTIVE REPAIR SHOPS (NON-DEALER),45,Pound Sterling (826),1.000000000,45,Debit,05272460338910004062906,02/01/2021,GLOUCESTER CITY COUNCIL
Gloucester City Council,23UE,Countryside Unit,EP003,Vehicle Repairs and MaintenancE,2103,07/12/2020,06/12/2020,PAYPAL *MEIZEMAOYIY EB,35314369001,GBR,TW91EH,REDACTED,556*********6734,5722,HOUSEHOLD APPLIANCE STORES,9.59,Pound Sterling (826),1.000000000,9.59,Debit,85130080341048320529715,02/01/2021,GLOUCESTER CITY COUNCIL
Gloucester City Council,23UE,Drainage and Flood Protection Works,XCDFP,Contract Works/Services,9001,10/12/2020,09/12/2020,AMZNMktplace,amazon.co.uk,GBR,EC2A 2FA,REDACTED,556*********6734,5999,MISCELLANEOUS AND RETAIL STORES,40.49,Pound Sterling (826),1.000000000,40.49,Debit,52692010344200436131670,02/01/2021,GLOUCESTER CITY COUNCIL
Gloucester City Council,23UE,Countryside Unit,EP003,Grounds Maintenance,1100,23/12/2020,22/12/2020,GLOUCESTER LOCKSMITHS,GLOUCESTER,GBR,GL2 4NZ,REDACTED,556*********6734,7399,BUSINESS SERVICES NOT ELSEWHERE CLASSIFIED,25,Pound Sterling (826),1.000000000,25,Debit,55184220357563577732011,02/01/2021,GLOUCESTER CITY COUNCIL
Gloucester City Council,23UE,Blackfriars,GH010,Equipment and Furniture,3001,07/12/2020,04/12/2020,WWW.POWERBEE.CO.UK,0845 0948821,,TN325JP,REDACTED,556*********5672,5722,HOUSEHOLD APPLIANCE STORES,277.26,Pound Sterling (826),1.000000000,277.26,Debit,85481470340273927997763,02/01/2021,GLOUCESTER CITY COUNCIL
Gloucester City Council,23UE,Destination Marketing,TI001,"ICT Software, Licences & SuppoRT",3521,16/12/2020,15/12/2020,AMZNMktplace,amazon.co.uk,GBR,EC2A 2FA,REDACTED,556*********5672,5999,MISCELLANEOUS AND RETAIL STORES,18.49,Pound Sterling (826),1.000000000,18.49,Debit,52692010350200054142174,02/01/2021,GLOUCESTER CITY COUNCIL
Gloucester City Council,23UE,Guildhall Events,GH002,Events,3070,23/12/2020,18/12/2020,MIPERMIT LTD,BRINKWORTH,GBR,SN15 5FD,REDACTED,556*********5672,7523,AUTOMOBILE PARKING LOTS AND GARAGES,50,Pound Sterling (826),1.000000000,50,Debit,05272470358910023428645,02/01/2021,GLOUCESTER CITY COUNCIL
Gloucester City Council,23UE,Gloucester Guildhall,GH001,Security Services,1550,28/12/2020,25/12/2020,PADDLE.NET* SNAPWIDGET,"GREAT OAKLEY,",LND,NN18 8JG,REDACTED,556*********5672,5817,DIGITAL GOODS - APPLICATIONS (EXLDG GAME,5.5,Pound Sterling (826),1.000000000,5.5,Debit,85383900361000000470577,02/01/2021,GLOUCESTER CITY COUNCIL
Gloucester City Council,23UE,Housing Services,HS001,B&B Payments,1303,03/12/2020,02/12/2020,GAR*HOTEL RES,800-468-3578,NLD,2042XA,REDACTED,556*********6959,4722,TRAVEL AGENCIES,791.28,Pound Sterling (826),1.000000000,791.28,Debit,55204720337200142915942,02/01/2021,GLOUCESTER CITY COUNCIL
Gloucester City Council,23UE,Housing Services,HS001,B&B Payments,1303,03/12/2020,02/12/2020,TRAVELODGE GB0000,THAME,,OX9 3AT,REDACTED,556*********6959,3615,TRAVELODGE,416.01,Pound Sterling (826),1.000000000,416.01,Debit,55504430337298147430779,02/01/2021,GLOUCESTER CITY COUNCIL
Gloucester City Council,23UE,Housing Services,HS001,B&B Payments,1303,03/12/2020,02/12/2020,TRAVELODGE GB0000,THAME,,OX9 3AT,REDACTED,556*********6959,3615,TRAVELODGE,39.76,Pound Sterling (826),1.000000000,39.76,Debit,55504430337298147423824,02/01/2021,GLOUCESTER CITY COUNCIL
Gloucester City Council,23UE,Housing Services,HS001,B&B Payments,1303,04/12/2020,03/12/2020,TRAVELODGE GB0000,THAME,,OX9 3AT,REDACTED,556*********6959,3615,TRAVELODGE,477.21,Pound Sterling (826),1.000000000,477.21,Debit,55504430338298154882515,02/01/2021,GLOUCESTER CITY COUNCIL
Gloucester City Council,23UE,Housing Services,HS001,B&B Payments,1303,04/12/2020,03/12/2020,TRAVELODGE GB0000,THAME,,OX9 3AT,REDACTED,556*********6959,3615,TRAVELODGE,35.68,Pound Sterling (826),1.000000000,35.68,Debit,55504430338298154853938,02/01/2021,GLOUCESTER CITY COUNCIL
Gloucester City Council,23UE,Housing Services,HS001,B&B Payments,1303,04/12/2020,02/12/2020,TRAVELODGE GB0819,BRISTOL,,BS1 5TT,REDACTED,556*********6959,3615,TRAVELODGE,264.93,Pound Sterling (826),1.000000000,264.93,Debit,55504430338110245851450,02/01/2021,GLOUCESTER CITY COUNCIL
Gloucester City Council,23UE,Housing Services,HS001,Mileage and Travel Allowances,2401,04/12/2020,03/12/2020,NX Website,BIRMINGHAM,,B5 6DD,REDACTED,556*********6959,4131,"BUS LINES, CHARTERS, TOUR BUSES",80,Pound Sterling (826),1.000000000,80,Debit,85481470339273831939680,02/01/2021,GLOUCESTER CITY COUNCIL
Gloucester City Council,23UE,Housing Services,HS001,B&B Payments,1303,08/12/2020,07/12/2020,TRAVELODGE GB0000,THAME,,OX9 3AT,REDACTED,556*********6959,3615,TRAVELODGE,190.66,Pound Sterling (826),1.000000000,190.66,Debit,55504430342298177837474,02/01/2021,GLOUCESTER CITY COUNCIL
Gloucester City Council,23UE,Housing Services,HS001,B&B Payments,1303,09/12/2020,08/12/2020,TRAVELODGE GB0000,THAME,,OX9 3AT,REDACTED,556*********6959,3615,TRAVELODGE,196.78,Pound Sterling (826),1.000000000,196.78,Debit,55504430343298184257202,02/01/2021,GLOUCESTER CITY COUNCIL
Gloucester City Council,23UE,Housing Services,HS001,B&B Payments,1303,10/12/2020,09/12/2020,TRAVELODGE GB0000,THAME,,OX9 3AT,REDACTED,556*********6959,3615,TRAVELODGE,55.05,Pound Sterling (826),1.000000000,55.05,Debit,55504430344298190510346,02/01/2021,GLOUCESTER CITY COUNCIL
Gloucester City Council,23UE,Housing Services,HS001,B&B Payments,1303,14/12/2020,11/12/2020,IBIS GLOUCESTER,GLOUCESTER,GBR,GL43DG,REDACTED,556*********6959,3533,HOTEL IBIS,39,Pound Sterling (826),1.000000000,39,Debit,55184220346543476957616,02/01/2021,GLOUCESTER CITY COUNCIL
Gloucester City Council,23UE,Housing Services,HS001,B&B Payments,1303,15/12/2020,14/12/2020,TRAVELODGE GB0000,THAME,,OX9 3AT,REDACTED,556*********6959,3615,TRAVELODGE,226.36,Pound Sterling (826),1.000000000,226.36,Debit,55504430349298120625722,02/01/2021,GLOUCESTER CITY COUNCIL
Gloucester City Council,23UE,Housing Services,HS001,B&B Payments,1303,15/12/2020,14/12/2020,IBIS GLOUCESTER,GLOUCESTER,GBR,GL43DG,REDACTED,556*********6959,3533,HOTEL IBIS,253,Pound Sterling (826),1.000000000,253,Debit,55184220349533509829731,02/01/2021,GLOUCESTER CITY COUNCIL
Gloucester City Council,23UE,Housing Services,HS001,B&B Payments,1303,16/12/2020,15/12/2020,TRAVELODGE GB0000,THAME,,OX9 3AT,REDACTED,556*********6959,3615,TRAVELODGE,72.39,Pound Sterling (826),1.000000000,72.39,Debit,55504430350298125745836,02/01/2021,GLOUCESTER CITY COUNCIL
Gloucester City Council,23UE,Housing Services,HS001,B&B Payments,1303,16/12/2020,15/12/2020,TRAVELODGE GB0000,THAME,,OX9 3AT,REDACTED,556*********6959,3615,TRAVELODGE,455.79,Pound Sterling (826),1.000000000,455.79,Debit,55504430350298125709725,02/01/2021,GLOUCESTER CITY COUNCIL
Gloucester City Council,23UE,Housing Services,HS001,B&B Payments,1303,17/12/2020,16/12/2020,TRAVELODGE GB0000,THAME,,OX9 3AT,REDACTED,556*********6959,3615,TRAVELODGE,35.68,Pound Sterling (826),1.000000000,35.68,Debit,55504430351298131533753,02/01/2021,GLOUCESTER CITY COUNCIL
Gloucester City Council,23UE,Housing Services,HS001,B&B Payments,1303,17/12/2020,16/12/2020,TRAVELODGE GB0000,THAME,,OX9 3AT,REDACTED,556*********6959,3615,TRAVELODGE,690.34,Pound Sterling (826),1.000000000,690.34,Debit,55504430351298131478595,02/01/2021,GLOUCESTER CITY COUNCIL
Gloucester City Council,23UE,Housing Services,HS001,B&B Payments,1303,17/12/2020,16/12/2020,TRAVELODGE GB0000,THAME,,OX9 3AT,REDACTED,556*********6959,3615,TRAVELODGE,480.27,Pound Sterling (826),1.000000000,480.27,Debit,55504430351298131477159,02/01/2021,GLOUCESTER CITY COUNCIL
Gloucester City Council,23UE,Housing Services,HS001,B&B Payments,1303,18/12/2020,17/12/2020,TRAVELODGE GB0000,THAME,,OX9 3AT,REDACTED,556*********6959,3615,TRAVELODGE,646.49,Pound Sterling (826),1.000000000,646.49,Debit,55504430352298137400535,02/01/2021,GLOUCESTER CITY COUNCIL
Gloucester City Council,23UE,Housing Services,HS001,B&B Payments,1303,18/12/2020,17/12/2020,TRAVELODGE GB0000,THAME,,OX9 3AT,REDACTED,556*********6959,3615,TRAVELODGE,37.72,Pound Sterling (826),1.000000000,37.72,Debit,55504430352298137409494,02/01/2021,GLOUCESTER CITY COUNCIL
Gloucester City Council,23UE,Housing Services,HS001,B&B Payments,1303,22/12/2020,21/12/2020,IBIS GLOUCESTER,GLOUCESTER,GBR,GL43DG,REDACTED,556*********6959,3533,HOTEL IBIS,492,Pound Sterling (826),1.000000000,492,Debit,55184220356533579384005,02/01/2021,GLOUCESTER CITY COUNCIL
Gloucester City Council,23UE,Housing Services,HS001,B&B Payments,1303,01/01/2021,29/12/2020,TRAVELODGE GB0809,GLOUCESTER,,GL1 5SF,REDACTED,556*********6959,3615,TRAVELODGE,473.36,Pound Sterling (826),1.000000000,473.36,Debit,55504430366110224814292,02/01/2021,GLOUCESTER CITY COUNCIL
Gloucester City Council,23UE,Economic Development,ED001,General Supplies/Materials,3025,04/12/2020,03/12/2020,TOWN AND CITY GIFT CAR,PERTH,,PH1 5UT,REDACTED,556*********3063,5947,"GIFT, CARD, NOVELTY, AND SOUVENIR SHOPS",307,Pound Sterling (826),1.000000000,307,Debit,85481470339273751951012,02/01/2021,GLOUCESTER CITY COUNCIL
Gloucester City Council,23UE,Contact Centre,CT001,Equipment and Furniture,3001,16/12/2020,15/12/2020,AMZNMktplace,amazon.co.uk,GBR,EC2A 2FA,REDACTED,556*********3063,5999,MISCELLANEOUS AND RETAIL STORES,25.99,Pound Sterling (826),1.000000000,25.99,Debit,52692010350200179877654,02/01/2021,GLOUCESTER CITY COUNCIL
Gloucester City Council,23UE,Guildhall Events,GH002,Advertising & Publicity,3404,03/12/2020,02/12/2020,WWW.INSTANTPRINT.C,01709 382202,,S63 5DR,REDACTED,556*********1585,7338,QUICK-COPY AND REPRODUCTION SERVICES,49.99,Pound Sterling (826),1.000000000,49.99,Debit,85481470338273550605836,02/01/2021,GLOUCESTER CITY COUNCIL
Gloucester City Council,23UE,Guildhall Bar and Caf�,GH005,Catering Provisions,3103,04/12/2020,03/12/2020,ICELAND,GLOUCESTER,GBR,GL1 1SA,REDACTED,556*********1585,5411,"GROCERY STORES, SUPERMARKETS",7.82,Pound Sterling (826),1.000000000,7.82,Debit,05130860339910025611964,02/01/2021,GLOUCESTER CITY COUNCIL
Gloucester City Council,23UE,Guildhall Bar and Caf�,GH005,Catering Provisions,3103,04/12/2020,03/12/2020,BOOKER LIMITED GLOUCES,GLOUCESTER,GBR,GL4 3RT,REDACTED,556*********1585,5811,CATERERS,59.84,Pound Sterling (826),1.000000000,59.84,Debit,55184220338523396462178,02/01/2021,GLOUCESTER CITY COUNCIL
Gloucester City Council,23UE,Guildhall Bar and Caf�,GH005,Catering Provisions,3103,04/12/2020,03/12/2020,BOOKER LIMITED GLOUCES,GLOUCESTER,GBR,GL4 3RT,REDACTED,556*********1585,5811,CATERERS,7.49,Pound Sterling (826),1.000000000,7.49,Debit,55184220338523396462301,02/01/2021,GLOUCESTER CITY COUNCIL
Gloucester City Council,23UE,Guildhall Bar and Caf�,GH005,Catering Provisions,3103,04/12/2020,03/12/2020,BOOKER LIMITED GLOUCES,GLOUCESTER,GBR,GL4 3RT,REDACTED,556*********1585,5811,CATERERS,89.16,Pound Sterling (826),1.000000000,89.16,Debit,55184220338523396462491,02/01/2021,GLOUCESTER CITY COUNCIL
Gloucester City Council,23UE,Guildhall Bar and Caf�,GH005,Catering Provisions,3103,07/12/2020,04/12/2020,SAINSBURYS SACAT 0771,GLOUCESTER,GBR,GL1 2AG,REDACTED,556*********1585,5411,"GROCERY STORES, SUPERMARKETS",18,Pound Sterling (826),1.000000000,18,Debit,05272460340910015262806,02/01/2021,GLOUCESTER CITY COUNCIL
Gloucester City Council,23UE,Guildhall Bar and Caf�,GH005,Catering Provisions,3103,07/12/2020,04/12/2020,B&M 298 - GLOUCESTER,GLOUCESTER,GBR,GL1 2DH,REDACTED,556*********1585,5399,MISCELLANEOUS GENERAL MERCHANDISE STORES,1.99,Pound Sterling (826),1.000000000,1.99,Debit,05272470340910045024647,02/01/2021,GLOUCESTER CITY COUNCIL
Gloucester City Council,23UE,Gloucester Guildhall,GH001,Cleaning Services & Materials,1500,07/12/2020,04/12/2020,B&M 298 - GLOUCESTER,GLOUCESTER,GBR,GL1 2DH,REDACTED,556*********1585,5399,MISCELLANEOUS GENERAL MERCHANDISE STORES,8.97,Pound Sterling (826),1.000000000,8.97,Debit,05272470340910045024647,02/01/2021,GLOUCESTER CITY COUNCIL
Gloucester City Council,23UE,Blackfriars ,GH010,Events,3070,07/12/2020,05/12/2020,AMZNMktplace,amazon.co.uk,GBR,EC2A 2FA,REDACTED,556*********1585,5999,MISCELLANEOUS AND RETAIL STORES,16.98,Pound Sterling (826),1.000000000,16.98,Debit,52692010340200215845049,02/01/2021,GLOUCESTER CITY COUNCIL
Gloucester City Council,23UE,Guildhall Bar and Caf�,GH005,Catering Provisions,3103,08/12/2020,07/12/2020,ASDA SUPERSTORE,GLOUCESTER,GBR,GL1 1DS,REDACTED,556*********1585,5411,"GROCERY STORES, SUPERMARKETS",2.61,Pound Sterling (826),1.000000000,2.61,Debit,05130860343910051145824,02/01/2021,GLOUCESTER CITY COUNCIL
Gloucester City Council,23UE,Gloucester Guildhall,GH001,Equipment and Furniture,3001,11/12/2020,09/12/2020,KICKTEK LTD,01635597026,GBR,RG145TL,REDACTED,556*********1585,5732,ELECTRONIC SALES,71.46,Pound Sterling (826),1.000000000,71.46,Debit,85130080345049579774628,02/01/2021,GLOUCESTER CITY COUNCIL
Gloucester City Council,23UE,Blackfriars ,GH010,Events,3070,11/12/2020,10/12/2020,AMZNMktplace,amazon.co.uk,GBR,EC2A 2FA,REDACTED,556*********1585,5999,MISCELLANEOUS AND RETAIL STORES,14.98,Pound Sterling (826),1.000000000,14.98,Debit,52692010345200667491453,02/01/2021,GLOUCESTER CITY COUNCIL
Gloucester City Council,23UE,Guildhall Bar and Caf�,GH005,Catering Provisions,3103,14/12/2020,11/12/2020,SAINSBURYS SACAT 0771,GLOUCESTER,GBR,GL1 2AG,REDACTED,556*********1585,5411,"GROCERY STORES, SUPERMARKETS",5,Pound Sterling (826),1.000000000,5,Debit,05272460347910015226440,02/01/2021,GLOUCESTER CITY COUNCIL
Gloucester City Council,23UE,Guildhall Bar and Caf�,GH005,Catering Provisions,3103,14/12/2020,11/12/2020,ASDA SUPERSTORE,GLOUCESTER,GBR,GL1 1DS,REDACTED,556*********1585,5411,"GROCERY STORES, SUPERMARKETS",31.74,Pound Sterling (826),1.000000000,31.74,Debit,05130860347910055149802,02/01/2021,GLOUCESTER CITY COUNCIL
Gloucester City Council,23UE,Guildhall Bar and Caf�,GH005,Catering Provisions,3103,14/12/2020,11/12/2020,ICELAND,GLOUCESTER,GBR,GL1 1SA,REDACTED,556*********1585,5411,"GROCERY STORES, SUPERMARKETS",2.18,Pound Sterling (826),1.000000000,2.18,Debit,05130860347910025484958,02/01/2021,GLOUCESTER CITY COUNCIL
Gloucester City Council,23UE,Guildhall Bar and Caf�,GH005,Catering Provisions,3103,14/12/2020,12/12/2020,ICELAND,GLOUCESTER,GBR,GL1 1SA,REDACTED,556*********1585,5411,"GROCERY STORES, SUPERMARKETS",3,Pound Sterling (826),1.000000000,3,Debit,05130860348910025489659,02/01/2021,GLOUCESTER CITY COUNCIL
Gloucester City Council,23UE,Guildhall Bar and Caf�,GH005,Catering Provisions,3103,15/12/2020,14/12/2020,AMZNMktplace,amazon.co.uk,GBR,EC2A 2FA,REDACTED,556*********1585,5999,MISCELLANEOUS AND RETAIL STORES,35.95,Pound Sterling (826),1.000000000,35.95,Debit,52692010349200811301349,02/01/2021,GLOUCESTER CITY COUNCIL
Gloucester City Council,23UE,Guildhall Bar and Caf�,GH005,Catering Provisions,3103,15/12/2020,14/12/2020,ICELAND,GLOUCESTER,GBR,GL1 1SA,REDACTED,556*********1585,5411,"GROCERY STORES, SUPERMARKETS",4.36,Pound Sterling (826),1.000000000,4.36,Debit,05130860350910028686074,02/01/2021,GLOUCESTER CITY COUNCIL
Gloucester City Council,23UE,Gloucester Guildhall,GH001,Equipment and Furniture,3001,16/12/2020,15/12/2020,HIRE STATION LTD,01159737400,,NG10 3FZ,REDACTED,556*********1585,7394,"EQUIP RENTALS & LEASING SERVICES, TOOL RENTAL, FURNITURE RENTAL",6,Pound Sterling (826),1.000000000,6,Debit,55504430350071298716581,02/01/2021,GLOUCESTER CITY COUNCIL
Gloucester City Council,23UE,Guildhall Bar and Caf�,GH005,Catering Provisions,3103,16/12/2020,15/12/2020,SAINSBURYS SACAT 0771,GLOUCESTER,GBR,GL1 2AG,REDACTED,556*********1585,5411,"GROCERY STORES, SUPERMARKETS",4.1,Pound Sterling (826),1.000000000,4.1,Debit,05272460351910015246193,02/01/2021,GLOUCESTER CITY COUNCIL
Gloucester City Council,23UE,Blackfriars ,GH010,Advertising & Publicity,3404,16/12/2020,15/12/2020,WWW.INSTANTPRINT.C,01709 382202,,S63 5DR,REDACTED,556*********1585,7338,QUICK-COPY AND REPRODUCTION SERVICES,28.99,Pound Sterling (826),1.000000000,28.99,Debit,85481470351276633928531,02/01/2021,GLOUCESTER CITY COUNCIL
Gloucester City Council,23UE,Events,GH008,Grant Payments/Heritage,3901/C282,17/12/2020,16/12/2020,thetrainline.com,+443332022222,GBR,EC1N 2TD,REDACTED,556*********1585,4112,PASSENGER RAILWAYS,18.26,Pound Sterling (826),1.000000000,18.26,Debit,15265670351000147837747,02/01/2021,GLOUCESTER CITY COUNCIL
Gloucester City Council,23UE,Guildhall Cinema,GH003,Professional Advice/ConsultantS Fees,3952,17/12/2020,17/12/2020,Amazon.co.uk*MS4DU6QZ4,AMAZON.CO.UK,LUX,L2338,REDACTED,556*********1585,5969,ALL OTHER DIRECT MARKETERS,12.99,Pound Sterling (826),1.000000000,12.99,Debit,52692010352200606190976,02/01/2021,GLOUCESTER CITY COUNCIL
Gloucester City Council,23UE,Guildhall Events,GH002,Advertising & Publicity,3404,18/12/2020,18/12/2020,MailChimp,30308,GA,30308,REDACTED,556*********1585,5818,DIGITAL GOODS - MULTI-CATEGORY,47.04,Pound Sterling (826),1.000000000,47.04,Debit,15270210353000069247541,02/01/2021,GLOUCESTER CITY COUNCIL
Gloucester City Council,23UE,Guildhall Bar and Caf�,GH005,Catering Provisions,3103,21/12/2020,18/12/2020,SAINSBURYS SACAT 0771,GLOUCESTER,GBR,GL1 2AG,REDACTED,556*********1585,5411,"GROCERY STORES, SUPERMARKETS",12,Pound Sterling (826),1.000000000,12,Debit,05272460354910015216441,02/01/2021,GLOUCESTER CITY COUNCIL
Gloucester City Council,23UE,Guildhall Bar and Caf�,GH005,Catering Provisions,3103,22/12/2020,21/12/2020,ICELAND,GLOUCESTER,GBR,GL1 1SA,REDACTED,556*********1585,5411,"GROCERY STORES, SUPERMARKETS",7.36,Pound Sterling (826),1.000000000,7.36,Debit,05130860357910027633328,02/01/2021,GLOUCESTER CITY COUNCIL
Gloucester City Council,23UE,Crematorium,CC003,General Supplies/Materials,3025,08/12/2020,07/12/2020,LIDL GB GLOUCESTER,GLOUCESTER,GBR,GL4 4LP,REDACTED,556*********0923,5411,"GROCERY STORES, SUPERMARKETS",10.74,Pound Sterling (826),1.000000000,10.74,Debit,05130860343910049387868,02/01/2021,GLOUCESTER CITY COUNCIL
Gloucester City Council,23UE,Crematorium,CC003,General Supplies/Materials,3025,14/12/2020,11/12/2020,ASDA SUPERSTORE,GLOUCESTER,GBR,GL1 1DS,REDACTED,556*********0923,5411,"GROCERY STORES, SUPERMARKETS",4,Pound Sterling (826),1.000000000,4,Debit,05130860347910053207743,02/01/2021,GLOUCESTER CITY COUNCIL
Gloucester City Council,23UE,Crematorium,CC003,General Supplies/Materials,3025,14/12/2020,12/12/2020,CARD FACTORY,GLOUCESTER,GBR,GL1 1QH,REDACTED,556*********0923,5947,"GIFT, CARD, NOVELTY, AND SOUVENIR SHOPS",2.97,Pound Sterling (826),1.000000000,2.97,Debit,05130860348910036532752,02/01/2021,GLOUCESTER CITY COUNCIL
Gloucester City Council,23UE,Crematorium,CC003,Grounds Maintenance,1100,16/12/2020,15/12/2020,HIGHFIELD GARDEN WORLD,WHITMINSTER,GBR,GL27PB,REDACTED,556*********0923,5261,"NURSERIES, LAWN AND GARDEN SUPPLY STORES",49.99,Pound Sterling (826),1.000000000,49.99,Debit,15122620351002443381634,02/01/2021,GLOUCESTER CITY COUNCIL
